[Event "Early-Titled-Tuesday-Blitz-March-19-2024"]
[Site "Chess.com"]
[Date "2024.03.19"]
[Round "3"]
[White "Alenzer"]
[Black "NovakRatko"]
[Result "0-1"]
[WhiteElo "2151"]
[BlackElo "2401"]
[TimeControl "180+1"]
[EndTime "8:29:01 PDT"]
[Termination "NovakRatko won by resignation"]

1. e4 {[%clk 0:02:59.8]} 1... d5 {[%clk 0:02:59.7]} 2. exd5 {[%clk 0:02:58]}
2... c6 {[%clk 0:03:00.1]} 3. dxc6 {[%clk 0:02:50.8]} 3... Nxc6 {[%clk 0:03:01]}
4. Nc3 {[%clk 0:02:49.1]} 4... e5 {[%clk 0:03:01]} 5. d3 {[%clk 0:02:47.3]} 5...
Bc5 {[%clk 0:03:00.5]} 6. Nf3 {[%clk 0:02:45.6]} 6... f5 {[%clk 0:03:00.5]} 7.
Bg5 {[%clk 0:02:34.3]} 7... Qb6 {[%clk 0:02:59.6]} 8. Nd5 {[%clk 0:02:20.6]}
8... Bxf2+ {[%clk 0:02:51.8]} 9. Ke2 {[%clk 0:02:09.8]} 9... Qa5 {[%clk
0:02:51.8]} 10. Kxf2 {[%clk 0:01:42.4]} 10... Qxd5 {[%clk 0:02:50.5]} 11. c4
{[%clk 0:01:41.8]} 11... Qd6 {[%clk 0:02:39]} 12. Be2 {[%clk 0:01:10.5]} 12...
h6 {[%clk 0:02:38.2]} 13. Be3 {[%clk 0:01:07.2]} 13... f4 {[%clk 0:02:35.8]} 14.
Bd2 {[%clk 0:01:05.4]} 14... Qc5+ {[%clk 0:02:31.4]} 15. Kf1 {[%clk 0:01:04]}
15... Nf6 {[%clk 0:02:29.5]} 16. a3 {[%clk 0:00:54.9]} 16... a5 {[%clk
0:02:21.1]} 17. Rb1 {[%clk 0:00:53]} 17... a4 {[%clk 0:02:17.2]} 18. Bc3 {[%clk
0:00:43.3]} 18... O-O {[%clk 0:02:15.2]} 19. Qe1 {[%clk 0:00:29.6]} 19... Ng4
{[%clk 0:02:12.9]} 20. Bd2 {[%clk 0:00:26.5]} 20... Bf5 {[%clk 0:01:59.6]} 21.
h3 {[%clk 0:00:21.5]} 21... Ne3+ {[%clk 0:01:59]} 22. Bxe3 {[%clk 0:00:17.9]}
22... fxe3 {[%clk 0:01:59]} 23. Kg1 {[%clk 0:00:17.5]} 23... Rad8 {[%clk
0:01:57.2]} 24. Rd1 {[%clk 0:00:17.3]} 24... e4 {[%clk 0:01:54.2]} 25. dxe4
{[%clk 0:00:15.4]} 25... Bxe4 {[%clk 0:01:54.3]} 26. Rxd8 {[%clk 0:00:14.8]}
26... Rxd8 {[%clk 0:01:53.9]} 27. Qg3 {[%clk 0:00:12]} 27... Bd3 {[%clk
0:01:20.4]} 28. Bxd3 {[%clk 0:00:08.6]} 28... Rxd3 {[%clk 0:01:18.8]} 29. Kh2
{[%clk 0:00:09.2]} 29... Qxc4 {[%clk 0:01:14.4]} 30. Re1 {[%clk 0:00:09.1]}
30... Qe4 {[%clk 0:01:03.2]} 31. Nh4 {[%clk 0:00:08.8]} 31... e2 {[%clk
0:00:59.9]} 32. Qf2 {[%clk 0:00:06.8]} 32... Nd4 {[%clk 0:00:57.2]} 33. Nf3
{[%clk 0:00:03.3]} 33... Rxf3 {[%clk 0:00:38.8]} 34. gxf3 {[%clk 0:00:02.9]}
34... Nxf3+ {[%clk 0:00:39.2]} 35. Kg3 {[%clk 0:00:03.2]} 35... Nxe1 {[%clk
0:00:36.5]} 36. Qxe1 {[%clk 0:00:04.1]} 36... Qe5+ {[%clk 0:00:33.7]} 37. Kf2
{[%clk 0:00:04.2]} 37... Qxb2 {[%clk 0:00:33.9]} 38. Qxe2 {[%clk 0:00:02.6]}
38... Qxe2+ {[%clk 0:00:32.7]} 39. Kxe2 {[%clk 0:00:03.4]} 39... Kf7 {[%clk
0:00:32.2]} 40. Kd3 {[%clk 0:00:04.1]} 40... g5 {[%clk 0:00:32.2]} 41. Kc4
{[%clk 0:00:05]} 41... h5 {[%clk 0:00:32.9]} 42. Kb4 {[%clk 0:00:05.2]} 42... g4
{[%clk 0:00:33.2]} 43. Kxa4 {[%clk 0:00:06.1]} 43... gxh3 {[%clk 0:00:32.4]} 0-1

[Event "Early-Titled-Tuesday-Blitz-March-19-2024"]
[Site "Chess.com"]
[Date "2024.03.19"]
[Round "3"]
[White "SashaKuzhilniy"]
[Black "RianKapriaga"]
[Result "1-0"]
[WhiteElo "2610"]
[BlackElo "2349"]
[TimeControl "180+1"]
[EndTime "8:29:03 PDT"]
[Termination "SashaKuzhilniy won on time"]

1. d4 {[%clk 0:03:00.9]} 1... Nf6 {[%clk 0:02:59.6]} 2. Bg5 {[%clk 0:03:01.1]}
2... e6 {[%clk 0:02:58.8]} 3. e4 {[%clk 0:03:00.9]} 3... h6 {[%clk 0:02:57.9]}
4. Bxf6 {[%clk 0:03:00.8]} 4... Qxf6 {[%clk 0:02:58.4]} 5. c3 {[%clk 0:03:00.2]}
5... d6 {[%clk 0:02:57.1]} 6. Nd2 {[%clk 0:02:58.8]} 6... g6 {[%clk 0:02:56.3]}
7. Bc4 {[%clk 0:02:58.3]} 7... Bg7 {[%clk 0:02:55.9]} 8. Ne2 {[%clk 0:02:58.5]}
8... a6 {[%clk 0:02:49.2]} 9. O-O {[%clk 0:02:58.9]} 9... b5 {[%clk 0:02:48.6]}
10. Bb3 {[%clk 0:02:59.3]} 10... Bb7 {[%clk 0:02:48.7]} 11. f4 {[%clk
0:02:59.3]} 11... O-O {[%clk 0:02:48.3]} 12. Ng3 {[%clk 0:02:51.9]} 12... c5
{[%clk 0:02:42.5]} 13. f5 {[%clk 0:02:27.1]} 13... exf5 {[%clk 0:01:26]} 14.
exf5 {[%clk 0:02:26.1]} 14... cxd4 {[%clk 0:01:13.4]} 15. Nde4 {[%clk
0:01:42.4]} 15... Bxe4 {[%clk 0:01:10.1]} 16. Nxe4 {[%clk 0:01:41.8]} 16... Qe5
{[%clk 0:01:10.5]} 17. Qg4 {[%clk 0:01:40.8]} 17... d5 {[%clk 0:00:50.1]} 18.
Ng3 {[%clk 0:01:40]} 18... h5 {[%clk 0:00:41.4]} 19. Qg5 {[%clk 0:01:24.1]}
19... Nd7 {[%clk 0:00:16.6]} 20. Rae1 {[%clk 0:01:21.6]} 20... Qf6 {[%clk
0:00:16.2]} 21. Qxf6 {[%clk 0:01:11.3]} 21... Nxf6 {[%clk 0:00:17.1]} 22. fxg6
{[%clk 0:01:09.6]} 22... fxg6 {[%clk 0:00:18]} 23. cxd4 {[%clk 0:01:09.1]} 23...
Rad8 {[%clk 0:00:16.8]} 24. Re6 {[%clk 0:01:08]} 24... Kh7 {[%clk 0:00:15.6]}
25. Rxa6 {[%clk 0:01:04.6]} 25... h4 {[%clk 0:00:14.9]} 26. Ne2 {[%clk 0:01:02]}
26... Ne4 {[%clk 0:00:11.4]} 27. Rxf8 {[%clk 0:01:00.7]} 27... Rxf8 {[%clk
0:00:11.1]} 28. Bxd5 {[%clk 0:00:23.2]} 28... Nd2 {[%clk 0:00:10.2]} 29. Bf3
{[%clk 0:00:23.2]} 29... h3 {[%clk 0:00:07.5]} 30. Rb6 {[%clk 0:00:18.5]} 30...
hxg2 {[%clk 0:00:06.2]} 31. Bxg2 {[%clk 0:00:17.5]} 31... Re8 {[%clk 0:00:06.4]}
32. Bf1 {[%clk 0:00:16.5]} 32... Rf8 {[%clk 0:00:04.7]} 33. Bg2 {[%clk
0:00:15.2]} 33... Re8 {[%clk 0:00:04.2]} 34. Bf1 {[%clk 0:00:13.1]} 34... Nf3+
{[%clk 0:00:02]} 35. Kg2 {[%clk 0:00:12.4]} 35... Nxd4 {[%clk 0:00:01.2]} 36.
Nxd4 {[%clk 0:00:13]} 36... Bxd4 {[%clk 0:00:01.3]} 37. Rxb5 {[%clk 0:00:13.7]}
1-0

[Event "Early-Titled-Tuesday-Blitz-March-19-2024"]
[Site "Chess.com"]
[Date "2024.03.19"]
[Round "3"]
[White "Akylbek2021"]
[Black "AsterPhoenix"]
[Result "0-1"]
[WhiteElo "2319"]
[BlackElo "2657"]
[TimeControl "180+1"]
[EndTime "8:29:03 PDT"]
[Termination "AsterPhoenix won on time"]

1. d4 {[%clk 0:03:00.9]} 1... Nf6 {[%clk 0:02:57.3]} 2. Nf3 {[%clk 0:03:01]}
2... d5 {[%clk 0:02:57.1]} 3. c4 {[%clk 0:03:01.3]} 3... e6 {[%clk 0:02:57]} 4.
g3 {[%clk 0:03:00.8]} 4... dxc4 {[%clk 0:02:54.5]} 5. Bg2 {[%clk 0:03:00.5]}
5... c6 {[%clk 0:02:50.5]} 6. Ne5 {[%clk 0:02:59.3]} 6... Bb4+ {[%clk
0:02:50.6]} 7. Bd2 {[%clk 0:02:50.6]} 7... Be7 {[%clk 0:02:50.4]} 8. e3 {[%clk
0:02:44.6]} 8... b5 {[%clk 0:02:50.2]} 9. Nxc6 {[%clk 0:02:42]} 9... Nxc6 {[%clk
0:02:51.1]} 10. Bxc6+ {[%clk 0:02:42.3]} 10... Bd7 {[%clk 0:02:51.7]} 11. Bxa8
{[%clk 0:02:32.8]} 11... Qxa8 {[%clk 0:02:52.6]} 12. O-O {[%clk 0:02:32.8]}
12... e5 {[%clk 0:02:41]} 13. dxe5 {[%clk 0:02:29.8]} 13... Bh3 {[%clk
0:02:40.5]} 14. f3 {[%clk 0:02:29.8]} 14... Ng4 {[%clk 0:02:39.5]} 15. Nc3
{[%clk 0:02:24.5]} 15... O-O {[%clk 0:02:30.6]} 16. Nxb5 {[%clk 0:02:10.7]}
16... Rd8 {[%clk 0:02:17.4]} 17. Nd4 {[%clk 0:01:52.1]} 17... Bc5 {[%clk
0:02:15.9]} 18. Qe2 {[%clk 0:01:48.8]} 18... Nxe5 {[%clk 0:02:01.5]} 19. Bc3
{[%clk 0:01:43.6]} 19... Bxf1 {[%clk 0:01:58.3]} 20. Rxf1 {[%clk 0:01:43.3]}
20... h5 {[%clk 0:01:52.1]} 21. h3 {[%clk 0:01:32.7]} 21... Qd5 {[%clk 0:01:48]}
22. f4 {[%clk 0:01:21.5]} 22... Nd3 {[%clk 0:01:45.8]} 23. Qg2 {[%clk
0:01:11.1]} 23... Qd7 {[%clk 0:01:37.6]} 24. f5 {[%clk 0:00:59.2]} 24... Re8
{[%clk 0:01:29.8]} 25. Qf3 {[%clk 0:00:56.4]} 25... Qe7 {[%clk 0:01:16.4]} 26.
f6 {[%clk 0:00:37.3]} 26... Qxe3+ {[%clk 0:01:16.3]} 27. Qxe3 {[%clk 0:00:36.9]}
27... Rxe3 {[%clk 0:01:17.2]} 28. fxg7 {[%clk 0:00:35.8]} 28... Rxg3+ {[%clk
0:01:04.9]} 29. Kh2 {[%clk 0:00:30.3]} 29... Rxg7 {[%clk 0:00:47.8]} 30. Nf5
{[%clk 0:00:19.2]} 30... Rg6 {[%clk 0:00:43.6]} 31. Rf3 {[%clk 0:00:14.5]} 31...
Bg1+ {[%clk 0:00:26.8]} 32. Kh1 {[%clk 0:00:14.4]} 32... Nf2+ {[%clk 0:00:27.5]}
33. Rxf2 {[%clk 0:00:12.8]} 33... Bxf2 {[%clk 0:00:28.4]} 34. Ne7+ {[%clk
0:00:13.5]} 34... Kh7 {[%clk 0:00:29.1]} 35. Nxg6 {[%clk 0:00:14]} 35... Kxg6
{[%clk 0:00:28.9]} 36. Kg2 {[%clk 0:00:14.3]} 36... Bc5 {[%clk 0:00:26.8]} 37.
Kf3 {[%clk 0:00:14.8]} 37... Kf5 {[%clk 0:00:27.2]} 38. a4 {[%clk 0:00:06.5]}
38... a6 {[%clk 0:00:27.3]} 39. Bd2 {[%clk 0:00:02.6]} 39... Bd4 {[%clk
0:00:27.4]} 40. Bc1 {[%clk 0:00:02.5]} 40... h4 {[%clk 0:00:20.5]} 41. Ke2
{[%clk 0:00:01.5]} 41... Ke4 {[%clk 0:00:20.9]} 42. Kf1 {[%clk 0:00:01.3]} 42...
Kf3 {[%clk 0:00:18.6]} 0-1

[Event "Early-Titled-Tuesday-Blitz-March-19-2024"]
[Site "Chess.com"]
[Date "2024.03.19"]
[Round "3"]
[White "Cheer_Down"]
[Black "profedechess93"]
[Result "0-1"]
[WhiteElo "2451"]
[BlackElo "2659"]
[TimeControl "180+1"]
[EndTime "8:29:04 PDT"]
[Termination "profedechess93 won by checkmate"]

1. e4 {[%clk 0:03:00.9]} 1... e6 {[%clk 0:03:00.2]} 2. d4 {[%clk 0:03:00.5]}
2... d5 {[%clk 0:03:00.9]} 3. Nc3 {[%clk 0:02:59.8]} 3... Nf6 {[%clk 0:03:00]}
4. e5 {[%clk 0:02:59.9]} 4... Nfd7 {[%clk 0:02:58.6]} 5. f4 {[%clk 0:03:00]}
5... c5 {[%clk 0:02:59.2]} 6. Nf3 {[%clk 0:02:59.6]} 6... Nc6 {[%clk 0:03:00]}
7. Be3 {[%clk 0:02:59.2]} 7... a6 {[%clk 0:03:00.6]} 8. Qd2 {[%clk 0:02:58.7]}
8... b5 {[%clk 0:03:01.2]} 9. Be2 {[%clk 0:02:57.8]} 9... Qb6 {[%clk 0:03:00.4]}
10. a3 {[%clk 0:02:48]} 10... cxd4 {[%clk 0:02:58.9]} 11. Nxd4 {[%clk
0:02:48.2]} 11... Bc5 {[%clk 0:02:59.4]} 12. Nxc6 {[%clk 0:01:49.5]} 12... Bxe3
{[%clk 0:02:58.3]} 13. Qd3 {[%clk 0:01:46.2]} 13... Bxf4 {[%clk 0:02:56.6]} 14.
Rf1 {[%clk 0:01:39.3]} 14... Nxe5 {[%clk 0:01:50.1]} 15. Nxe5 {[%clk 0:01:33.3]}
15... Bxe5 {[%clk 0:01:51]} 16. Nxd5 {[%clk 0:01:30.6]} 16... Qa5+ {[%clk
0:00:45.5]} 17. b4 {[%clk 0:01:23.6]} 17... Qd8 {[%clk 0:00:41.7]} 18. O-O-O
{[%clk 0:00:39.5]} 18... exd5 {[%clk 0:00:40.2]} 19. Qe3 {[%clk 0:00:16.8]}
19... Qe7 {[%clk 0:00:40]} 20. Kb1 {[%clk 0:00:16.6]} 20... d4 {[%clk
0:00:30.4]} 21. Qd3 {[%clk 0:00:14.7]} 21... O-O {[%clk 0:00:19.3]} 22. Bf3
{[%clk 0:00:14]} 22... Bb7 {[%clk 0:00:19.5]} 23. Rde1 {[%clk 0:00:13.3]} 23...
f6 {[%clk 0:00:16.7]} 24. Qb3+ {[%clk 0:00:09.7]} 24... Kh8 {[%clk 0:00:12.9]}
25. Be4 {[%clk 0:00:10.1]} 25... Bxe4 {[%clk 0:00:12.2]} 26. Rxe4 {[%clk
0:00:11]} 26... Qf7 {[%clk 0:00:12.3]} 27. Qh3 {[%clk 0:00:10.4]} 27... Rac8
{[%clk 0:00:11.1]} 28. Rf2 {[%clk 0:00:10.1]} 28... Qg6 {[%clk 0:00:11.2]} 29.
Rg4 {[%clk 0:00:09.5]} 29... Qf7 {[%clk 0:00:10]} 30. Rh4 {[%clk 0:00:09.4]}
30... h6 {[%clk 0:00:09.1]} 31. Rf5 {[%clk 0:00:07]} 31... Qg6 {[%clk
0:00:06.3]} 32. g4 {[%clk 0:00:05.5]} 32... d3 {[%clk 0:00:05.2]} 33. cxd3
{[%clk 0:00:05.4]} 33... Rfd8 {[%clk 0:00:04.7]} 34. Rfh5 {[%clk 0:00:05.7]}
34... Qxd3+ {[%clk 0:00:04]} 35. Qxd3 {[%clk 0:00:06.1]} 35... Rxd3 {[%clk
0:00:04.9]} 36. g5 {[%clk 0:00:06.2]} 36... Rd1+ {[%clk 0:00:04.7]} 37. Ka2
{[%clk 0:00:05.5]} 37... Ra1+ {[%clk 0:00:05.3]} 38. Kb3 {[%clk 0:00:06.1]}
38... Rb1+ {[%clk 0:00:05.6]} 39. Ka2 {[%clk 0:00:06.5]} 39... Rb2+ {[%clk
0:00:06.5]} 40. Ka1 {[%clk 0:00:07.1]} 40... Rc1# {[%clk 0:00:07]} 0-1

[Event "Early-Titled-Tuesday-Blitz-March-19-2024"]
[Site "Chess.com"]
[Date "2024.03.19"]
[Round "3"]
[White "Slovineanu"]
[Black "GeorgiosSouleidis"]
[Result "1-0"]
[WhiteElo "2493"]
[BlackElo "2690"]
[TimeControl "180+1"]
[EndTime "8:29:05 PDT"]
[Termination "Slovineanu won on time"]

1. d4 {[%clk 0:02:56.6]} 1... Nf6 {[%clk 0:03:00]} 2. Nf3 {[%clk 0:02:56.3]}
2... g6 {[%clk 0:03:00.5]} 3. Nbd2 {[%clk 0:02:55.9]} 3... d5 {[%clk 0:03:00.2]}
4. e3 {[%clk 0:02:55.7]} 4... Bg7 {[%clk 0:03:00.6]} 5. b4 {[%clk 0:02:55.9]}
5... O-O {[%clk 0:03:00.8]} 6. c4 {[%clk 0:02:55.7]} 6... c6 {[%clk 0:02:55.7]}
7. a4 {[%clk 0:02:52]} 7... Nbd7 {[%clk 0:02:53.6]} 8. Bb2 {[%clk 0:02:46.9]}
8... Re8 {[%clk 0:02:53.6]} 9. Be2 {[%clk 0:02:42.7]} 9... a6 {[%clk 0:02:53.6]}
10. O-O {[%clk 0:02:40.1]} 10... h6 {[%clk 0:02:34]} 11. Qb3 {[%clk 0:02:32]}
11... Nf8 {[%clk 0:02:22.8]} 12. cxd5 {[%clk 0:02:18.1]} 12... cxd5 {[%clk
0:02:20.1]} 13. Rfc1 {[%clk 0:02:14.6]} 13... Bg4 {[%clk 0:02:15.1]} 14. b5
{[%clk 0:02:02.9]} 14... a5 {[%clk 0:02:15.1]} 15. Ba3 {[%clk 0:02:00.5]} 15...
N8d7 {[%clk 0:02:05.9]} 16. h3 {[%clk 0:01:57.5]} 16... Bxf3 {[%clk 0:02:05.7]}
17. Nxf3 {[%clk 0:01:55.7]} 17... Nb6 {[%clk 0:01:54.6]} 18. Rc2 {[%clk
0:01:42.2]} 18... Ne4 {[%clk 0:01:54.6]} 19. Rac1 {[%clk 0:01:39.6]} 19... Nd6
{[%clk 0:01:28.8]} 20. Bc5 {[%clk 0:01:04.9]} 20... Ndc4 {[%clk 0:01:15.6]} 21.
Nd2 {[%clk 0:00:58.1]} 21... Nd6 {[%clk 0:01:10]} 22. Bxb6 {[%clk 0:00:55.5]}
22... Qxb6 {[%clk 0:01:10.9]} 23. Qxd5 {[%clk 0:00:55.5]} 23... e5 {[%clk
0:01:05.6]} 24. Nc4 {[%clk 0:00:52.9]} 24... Nxc4 {[%clk 0:01:04.7]} 25. Bxc4
{[%clk 0:00:52.6]} 25... Re7 {[%clk 0:01:00.2]} 26. dxe5 {[%clk 0:00:46.8]}
26... Bxe5 {[%clk 0:01:01.1]} 27. Bb3 {[%clk 0:00:43.6]} 27... Kg7 {[%clk
0:00:58.6]} 28. g3 {[%clk 0:00:28.3]} 28... Rd8 {[%clk 0:00:43.8]} 29. Qf3
{[%clk 0:00:25.9]} 29... Rd3 {[%clk 0:00:39.8]} 30. Bd5 {[%clk 0:00:23.5]} 30...
Ra3 {[%clk 0:00:39.8]} 31. Rc4 {[%clk 0:00:21.3]} 31... Bf6 {[%clk 0:00:28.1]}
32. Kg2 {[%clk 0:00:20.5]} 32... h5 {[%clk 0:00:25.9]} 33. h4 {[%clk 0:00:20.5]}
33... Bb2 {[%clk 0:00:10.5]} 34. R1c2 {[%clk 0:00:19.8]} 34... Be5 {[%clk
0:00:10.9]} 35. Rc8 {[%clk 0:00:19.4]} 35... Bf6 {[%clk 0:00:09.3]} 36. Rb8
{[%clk 0:00:19.4]} 36... Rd3 {[%clk 0:00:08.3]} 37. Rcc8 {[%clk 0:00:19.3]}
37... Qd6 {[%clk 0:00:06.9]} 38. Rg8+ {[%clk 0:00:19]} 38... Kh7 {[%clk
0:00:07.5]} 39. Be4 {[%clk 0:00:18.7]} 39... Rd2 {[%clk 0:00:07]} 40. Bxb7
{[%clk 0:00:17.8]} 40... Qe5 {[%clk 0:00:03.6]} 41. Bc6 {[%clk 0:00:16.4]} 41...
Bg7 {[%clk 0:00:01.4]} 42. e4 {[%clk 0:00:14]} 1-0

[Event "Early-Titled-Tuesday-Blitz-March-19-2024"]
[Site "Chess.com"]
[Date "2024.03.19"]
[Round "3"]
[White "ccccvhhhj"]
[Black "LikeWater"]
[Result "1-0"]
[WhiteElo "2477"]
[BlackElo "2662"]
[TimeControl "180+1"]
[EndTime "8:29:06 PDT"]
[Termination "ccccvhhhj won by checkmate"]

1. e4 {[%clk 0:02:56.1]} 1... c5 {[%clk 0:02:58]} 2. Nf3 {[%clk 0:02:56.2]} 2...
e6 {[%clk 0:02:57.6]} 3. b4 {[%clk 0:02:55.9]} 3... b6 {[%clk 0:02:56.1]} 4.
bxc5 {[%clk 0:02:55.7]} 4... bxc5 {[%clk 0:02:57]} 5. c3 {[%clk 0:02:56.6]} 5...
Bb7 {[%clk 0:02:56.5]} 6. Bd3 {[%clk 0:02:56.7]} 6... d5 {[%clk 0:02:55]} 7. e5
{[%clk 0:02:57.1]} 7... Nc6 {[%clk 0:02:51.7]} 8. O-O {[%clk 0:02:56.5]} 8... f6
{[%clk 0:02:48.8]} 9. Bb5 {[%clk 0:02:50.2]} 9... Nh6 {[%clk 0:02:41.5]} 10. d4
{[%clk 0:02:49.5]} 10... Nf7 {[%clk 0:02:41.3]} 11. Re1 {[%clk 0:02:46.1]} 11...
f5 {[%clk 0:02:41.1]} 12. dxc5 {[%clk 0:02:32.2]} 12... Bxc5 {[%clk 0:02:40.3]}
13. Nd4 {[%clk 0:02:32.3]} 13... Qb6 {[%clk 0:02:37.4]} 14. Nxe6 {[%clk
0:02:09]} 14... Bxf2+ {[%clk 0:02:34]} 15. Kh1 {[%clk 0:02:09.7]} 15... Bxe1
{[%clk 0:02:30.6]} 16. Qxe1 {[%clk 0:02:07.7]} 16... Ke7 {[%clk 0:02:26]} 17.
Bxc6 {[%clk 0:02:06.5]} 17... Kxe6 {[%clk 0:02:25.1]} 18. Bxb7 {[%clk
0:02:02.5]} 18... Qxb7 {[%clk 0:02:26]} 19. Bf4 {[%clk 0:01:59.3]} 19... g5
{[%clk 0:02:21]} 20. Bg3 {[%clk 0:01:47]} 20... f4 {[%clk 0:02:12.3]} 21. Bf2
{[%clk 0:01:47]} 21... Qb2 {[%clk 0:01:23.4]} 22. Nd2 {[%clk 0:01:45.1]} 22...
Rac8 {[%clk 0:01:19.1]} 23. Bd4 {[%clk 0:01:41]} 23... Qc2 {[%clk 0:01:12.1]}
24. Nf3 {[%clk 0:01:33.2]} 24... Qe4 {[%clk 0:00:55]} 25. Qf1 {[%clk 0:01:14.7]}
25... Rb8 {[%clk 0:00:52.2]} 26. Re1 {[%clk 0:01:14.5]} 26... Qf5 {[%clk
0:00:51]} 27. Qa6+ {[%clk 0:01:13.7]} 27... Ke7 {[%clk 0:00:41.2]} 28. Qxa7+
{[%clk 0:01:09.3]} 28... Ke6 {[%clk 0:00:41.2]} 29. Qa6+ {[%clk 0:01:03.8]}
29... Ke7 {[%clk 0:00:41.1]} 30. e6 {[%clk 0:00:58.9]} 30... Rb1 {[%clk
0:00:34.8]} 31. Qa7+ {[%clk 0:00:53.4]} 31... Kf8 {[%clk 0:00:34.2]} 32. exf7
{[%clk 0:00:38.1]} 32... Rxe1+ {[%clk 0:00:32.1]} 33. Nxe1 {[%clk 0:00:39]}
33... Qe4 {[%clk 0:00:25.6]} 34. Nf3 {[%clk 0:00:27.6]} 34... g4 {[%clk
0:00:19.9]} 35. Ng5 {[%clk 0:00:22.1]} 35... Qe1+ {[%clk 0:00:13.1]} 36. Bg1
{[%clk 0:00:22.7]} 36... f3 {[%clk 0:00:12.8]} 37. Qb8+ {[%clk 0:00:20.1]} 37...
Kg7 {[%clk 0:00:12.2]} 38. Qxh8+ {[%clk 0:00:20.4]} 38... Kh6 {[%clk 0:00:09.6]}
39. f8=Q+ {[%clk 0:00:19.9]} 39... Kxg5 {[%clk 0:00:09.3]} 40. Qff6+ {[%clk
0:00:19.7]} 40... Kh5 {[%clk 0:00:08.7]} 41. Qf7+ {[%clk 0:00:19.9]} 41... Kg5
{[%clk 0:00:08.3]} 42. Qhf6# {[%clk 0:00:20.1]} 1-0

[Event "Early-Titled-Tuesday-Blitz-March-19-2024"]
[Site "Chess.com"]
[Date "2024.03.19"]
[Round "3"]
[White "MyDream003"]
[Black "Pingah9"]
[Result "0-1"]
[WhiteElo "2774"]
[BlackElo "2588"]
[TimeControl "180+1"]
[EndTime "8:29:08 PDT"]
[Termination "Pingah9 won on time"]

1. e4 {[%clk 0:03:00.9]} 1... g6 {[%clk 0:02:58]} 2. d4 {[%clk 0:03:00.3]} 2...
Bg7 {[%clk 0:02:58.4]} 3. Nf3 {[%clk 0:03:00.2]} 3... d6 {[%clk 0:02:58.2]} 4.
Bc4 {[%clk 0:02:58.9]} 4... e6 {[%clk 0:02:58.1]} 5. O-O {[%clk 0:02:58.6]} 5...
Nd7 {[%clk 0:02:57.6]} 6. c3 {[%clk 0:02:57.4]} 6... a6 {[%clk 0:02:57.6]} 7. a4
{[%clk 0:02:56.9]} 7... b6 {[%clk 0:02:57.9]} 8. Re1 {[%clk 0:02:56.8]} 8... Bb7
{[%clk 0:02:57.5]} 9. Nbd2 {[%clk 0:02:57.4]} 9... Ne7 {[%clk 0:02:57.6]} 10.
Bd3 {[%clk 0:02:57.2]} 10... h6 {[%clk 0:02:57.2]} 11. Nf1 {[%clk 0:02:57.6]}
11... O-O {[%clk 0:02:57.3]} 12. Ng3 {[%clk 0:02:58.1]} 12... c5 {[%clk
0:02:51.6]} 13. Be3 {[%clk 0:02:57.2]} 13... Qc7 {[%clk 0:02:50.6]} 14. Rc1
{[%clk 0:02:55.4]} 14... Kh7 {[%clk 0:02:49.2]} 15. h4 {[%clk 0:02:54.6]} 15...
Rac8 {[%clk 0:02:45.8]} 16. h5 {[%clk 0:02:54.4]} 16... e5 {[%clk 0:02:36.2]}
17. d5 {[%clk 0:02:51]} 17... c4 {[%clk 0:02:26.4]} 18. Bf1 {[%clk 0:02:44.6]}
18... b5 {[%clk 0:02:14.8]} 19. b4 {[%clk 0:02:25.4]} 19... Nb6 {[%clk
0:02:05.4]} 20. a5 {[%clk 0:02:23.3]} 20... Na4 {[%clk 0:01:58.4]} 21. Qd2
{[%clk 0:02:21.2]} 21... Rg8 {[%clk 0:01:48]} 22. Nh2 {[%clk 0:02:20]} 22... g5
{[%clk 0:01:42.7]} 23. Be2 {[%clk 0:02:18.8]} 23... Rcf8 {[%clk 0:01:40.7]} 24.
Bg4 {[%clk 0:02:12.4]} 24... Bc8 {[%clk 0:01:39.1]} 25. f3 {[%clk 0:02:12.7]}
25... Kh8 {[%clk 0:01:29.3]} 26. Nf5 {[%clk 0:01:54.9]} 26... Bxf5 {[%clk
0:01:19.7]} 27. Bxf5 {[%clk 0:01:55.8]} 27... Nxf5 {[%clk 0:01:18.8]} 28. exf5
{[%clk 0:01:56.7]} 28... Qd7 {[%clk 0:01:13.1]} 29. Qc2 {[%clk 0:01:56.9]} 29...
e4 {[%clk 0:01:04.9]} 30. fxe4 {[%clk 0:01:49]} 30... Bxc3 {[%clk 0:01:04]} 31.
Ng4 {[%clk 0:01:47.3]} 31... Bxe1 {[%clk 0:00:52.1]} 32. Bd4+ {[%clk 0:01:43.2]}
32... f6 {[%clk 0:00:50]} 33. Rxe1 {[%clk 0:01:39.8]} 33... Kg7 {[%clk
0:00:48.3]} 34. Re3 {[%clk 0:01:33.8]} 34... Rf7 {[%clk 0:00:46.2]} 35. Qc1
{[%clk 0:01:30]} 35... Re8 {[%clk 0:00:44.6]} 36. Kf2 {[%clk 0:01:04.8]} 36...
c3 {[%clk 0:00:43.1]} 37. Qc2 {[%clk 0:00:47.6]} 37... Rc8 {[%clk 0:00:42.8]}
38. Kf3 {[%clk 0:00:43.2]} 38... Rc4 {[%clk 0:00:42.9]} 39. Rd3 {[%clk
0:00:38.1]} 39... Rxb4 {[%clk 0:00:40.6]} 40. Rd1 {[%clk 0:00:21.6]} 40... Rc4
{[%clk 0:00:38.5]} 41. Ne3 {[%clk 0:00:20.1]} 41... Rc8 {[%clk 0:00:34.9]} 42.
Rc1 {[%clk 0:00:20.1]} 42... b4 {[%clk 0:00:34.2]} 43. Qb3 {[%clk 0:00:19.1]}
43... Qb5 {[%clk 0:00:34.1]} 44. Kf2 {[%clk 0:00:16.1]} 44... Nc5 {[%clk
0:00:32.4]} 45. Qb1 {[%clk 0:00:14.8]} 45... Nd3+ {[%clk 0:00:31.3]} 46. Kf3
{[%clk 0:00:15]} 46... Nxc1 {[%clk 0:00:31.4]} 47. Qxc1 {[%clk 0:00:15.9]} 47...
b3 {[%clk 0:00:29.6]} 0-1